[Event "Titled Tuesday Blitz May 24 Early 2022"]
[White "Nilsen, Tobias Lang"]
[Black "Haas, Michael"]
[WhiteFideId "1521624"]
[BlackFideId "1629514"]
[WhiteElo "2014"]
[BlackElo "1982"]
[Result "0-1"]
[Round "07"]
[TimeControl "180+1"]
[Date "2022.05.25"]
[WhiteClock "0:00:39"]
[BlackClock "0:00:11"]

1. f4 {[%clk 0:03:00]}  d5 {[%clk 0:02:54]} 2. Nf3 {[%clk 0:03:01]}  Nf6 {[%clk 0:02:53]} 3. g3 {[%clk 0:03:01]}  e6 {[%clk 0:02:53]} 4. Bg2 {[%clk 0:03:02]}  Be7 {[%clk 0:02:54]} 5. O-O {[%clk 0:03:02]}  b6 {[%clk 0:02:54]} 6. d3 {[%clk 0:03:01]}  Bb7 {[%clk 0:02:54]} 7. Nc3 {[%clk 0:03:02]}  c5 {[%clk 0:02:52]} 8. e4 {[%clk 0:03:01]}  Nc6 {[%clk 0:02:47]} 9. Qe1 {[%clk 0:03:00]}  Qc7 {[%clk 0:02:46]} 10. Bd2 {[%clk 0:02:58]}  a6 {[%clk 0:02:46]} 11. f5 {[%clk 0:02:54]}  O-O-O {[%clk 0:02:27]} 12. fxe6 {[%clk 0:02:52]}  fxe6 {[%clk 0:02:26]} 13. Bf4 {[%clk 0:02:51]}  e5 {[%clk 0:02:24]} 14. Bd2 {[%clk 0:02:49]}  d4 {[%clk 0:02:21]} 15. Nd5 {[%clk 0:02:49]}  Nxd5 {[%clk 0:02:21]} 16. exd5 {[%clk 0:02:50]}  Rxd5 {[%clk 0:02:15]} 17. Ng5 {[%clk 0:02:43]}  Bxg5 {[%clk 0:01:48]} 18. Bxd5 {[%clk 0:02:37]}  Bxd2 {[%clk 0:01:46]} 19. Qxd2 {[%clk 0:02:38]}  Qd6 {[%clk 0:01:22]} 20. Be4 {[%clk 0:02:37]}  Ne7 {[%clk 0:01:16]} 21. Bxb7+ {[%clk 0:02:33]}  Kxb7 {[%clk 0:01:17]} 22. Rf7 {[%clk 0:02:32]}  Kc6 {[%clk 0:01:14]} 23. Raf1 {[%clk 0:02:30]}  Nd5 {[%clk 0:01:12]} 24. c4 {[%clk 0:02:24]}  Ne3 {[%clk 0:01:08]} 25. Qf2 {[%clk 0:02:12]}  b5 {[%clk 0:00:40]} 26. Qf3+ {[%clk 0:02:09]}  Kb6 {[%clk 0:00:40]} 27. Qb7+ {[%clk 0:02:00]}  Ka5 {[%clk 0:00:40]} 28. Rd7 {[%clk 0:01:31]}  Qg6 {[%clk 0:00:24]} 29. Qc7+ {[%clk 0:01:10]}  Qb6 {[%clk 0:00:16]} 30. Qxb6+ {[%clk 0:01:08]}  Kxb6 {[%clk 0:00:17]} 31. Rff7 {[%clk 0:01:06]}  bxc4 {[%clk 0:00:12]} 32. dxc4 {[%clk 0:01:04]}  Nxc4 {[%clk 0:00:12]} 33. Rxg7 {[%clk 0:01:04]}  e4 {[%clk 0:00:11]} 34. Rxh7 {[%clk 0:01:00]}  Rf8 {[%clk 0:00:09]} 35. Rhf7 {[%clk 0:01:00]}  Rxf7 {[%clk 0:00:09]} 36. Rxf7 {[%clk 0:01:00]}  d3 {[%clk 0:00:09]} 37. Kf1 {[%clk 0:00:58]}  e3 {[%clk 0:00:09]} 38. Rd7 {[%clk 0:00:58]}  d2 {[%clk 0:00:03]} 39. Ke2 {[%clk 0:00:58]}  Nxb2 {[%clk 0:00:03]} 40. h4 {[%clk 0:00:41]}  c4 {[%clk 0:00:03]} 41. Rxd2 {[%clk 0:00:41]}  exd2 {[%clk 0:00:03]} 42. Kxd2 {[%clk 0:00:42]}  Nd3 {[%clk 0:00:02]} 43. h5 {[%clk 0:00:42]}  Ne5 {[%clk 0:00:03]} 44. h6 {[%clk 0:00:38]}  Ng6 {[%clk 0:00:03]} 45. Kc3 {[%clk 0:00:37]}  Kc5 {[%clk 0:00:03]} 46. g4 {[%clk 0:00:37]}  a5 {[%clk 0:00:04]} 47. Kd2 {[%clk 0:00:31]}  Kd4 {[%clk 0:00:04]} 48. Kc2 {[%clk 0:00:31]}  c3 {[%clk 0:00:04]} 49. g5 {[%clk 0:00:31]}  Kc4 {[%clk 0:00:05]} 50. Kc1 {[%clk 0:00:30]}  Kd3 {[%clk 0:00:05]} 51. Kd1 {[%clk 0:00:31]}  c2+ {[%clk 0:00:05]} 52. Kc1 {[%clk 0:00:31]}  a4 {[%clk 0:00:04]} 53. a3 {[%clk 0:00:30]}  Kc3 {[%clk 0:00:04]} 54. h7 {[%clk 0:00:31]}  Kb3 {[%clk 0:00:04]} 55. Kd2 {[%clk 0:00:30]}  Kb2 {[%clk 0:00:04]} 56. Ke3 {[%clk 0:00:30]}  c1=Q+ {[%clk 0:00:03]} 57. Ke4 {[%clk 0:00:31]}  Qxg5 {[%clk 0:00:03]} 58. h8=Q+ {[%clk 0:00:32]}  Nxh8 {[%clk 0:00:03]} 59. Kd4 {[%clk 0:00:32]}  Qg3 {[%clk 0:00:03]} 60. Kc4 {[%clk 0:00:33]}  Qxa3 {[%clk 0:00:04]} 61. Kd5 {[%clk 0:00:33]}  Qb3+ {[%clk 0:00:05]} 62. Kd6 {[%clk 0:00:33]}  a3 {[%clk 0:00:06]} 63. Ke7 {[%clk 0:00:34]}  a2 {[%clk 0:00:07]} 64. Kf8 {[%clk 0:00:34]}  a1=R {[%clk 0:00:08]} 65. Kg7 {[%clk 0:00:35]}  Ra4 {[%clk 0:00:09]} 66. Kxh8 {[%clk 0:00:36]}  Qb5 {[%clk 0:00:09]} 67. Kg7 {[%clk 0:00:37]}  Ra6 {[%clk 0:00:10]} 68. Kf8 {[%clk 0:00:38]}  Qb7 {[%clk 0:00:10]} 69. Ke8 {[%clk 0:00:39]}  Ra8# {[%clk 0:00:11]} 0-1


[Site "https://www.chess.com"]

[Event "Titled Tuesday Blitz May 24 Early 2022"]
[White "Nogerbek, Kazybek"]
[Black "Hakemi, Arman"]
[WhiteFideId "13710427"]
[BlackFideId "22520805"]
[WhiteElo "2441"]
[BlackElo "2115"]
[Result "1-0"]
[Round "07"]
[TimeControl "180+1"]
[Date "2022.05.24"]
[WhiteClock "0:01:05"]
[BlackClock "0:00:02"]

1. Nf3 {[%clk 0:03:00]}  Nf6 {[%clk 0:02:56]} 2. c4 {[%clk 0:03:00]}  e6 {[%clk 0:02:56]} 3. Nc3 {[%clk 0:03:01]}  d5 {[%clk 0:02:57]} 4. e3 {[%clk 0:03:01]}  Bd6 {[%clk 0:02:41]} 5. b3 {[%clk 0:03:01]}  O-O {[%clk 0:02:41]} 6. Bb2 {[%clk 0:03:02]}  b6 {[%clk 0:02:42]} 7. cxd5 {[%clk 0:03:01]}  exd5 {[%clk 0:02:42]} 8. g3 {[%clk 0:03:02]}  c6 {[%clk 0:02:39]} 9. Bg2 {[%clk 0:03:01]}  Ba6 {[%clk 0:02:40]} 10. Ne2 {[%clk 0:03:01]}  Nbd7 {[%clk 0:02:40]} 11. O-O {[%clk 0:03:02]}  Rc8 {[%clk 0:02:40]} 12. Rc1 {[%clk 0:03:01]}  Nc5 {[%clk 0:02:39]} 13. Bxf6 {[%clk 0:02:38]}  Qxf6 {[%clk 0:02:40]} 14. d4 {[%clk 0:02:39]}  Ne4 {[%clk 0:02:38]} 15. Re1 {[%clk 0:02:39]}  Bb4 {[%clk 0:02:38]} 16. Rf1 {[%clk 0:02:35]}  Rfd8 {[%clk 0:02:31]} 17. Ne5 {[%clk 0:02:31]}  c5 {[%clk 0:02:28]} 18. Nd3 {[%clk 0:02:25]}  Bd2 {[%clk 0:02:03]} 19. Bxe4 {[%clk 0:02:19]}  dxe4 {[%clk 0:01:46]} 20. Qxd2 {[%clk 0:02:15]}  exd3 {[%clk 0:01:46]} 21. Nf4 {[%clk 0:02:13]}  cxd4 {[%clk 0:01:47]} 22. e4 {[%clk 0:02:12]}  Rc2 {[%clk 0:01:44]} 23. Rxc2 {[%clk 0:01:57]}  dxc2 {[%clk 0:01:44]} 24. Rc1 {[%clk 0:01:57]}  d3 {[%clk 0:01:44]} 25. Nd5 {[%clk 0:01:58]}  Qd4 {[%clk 0:01:37]} 26. Ne7+ {[%clk 0:01:53]}  Kf8 {[%clk 0:01:32]} 27. Nc6 {[%clk 0:01:54]}  Qd7 {[%clk 0:01:19]} 28. Nxd8 {[%clk 0:01:54]}  Qxd8 {[%clk 0:01:20]} 29. Rxc2 {[%clk 0:01:55]}  Qd4 {[%clk 0:01:13]} 30. Rc7 {[%clk 0:01:45]}  Qxe4 {[%clk 0:01:06]} 31. Rxa7 {[%clk 0:01:45]}  Bb5 {[%clk 0:00:59]} 32. Rc7 {[%clk 0:01:40]}  h5 {[%clk 0:00:47]} 33. h4 {[%clk 0:01:35]}  Kg8 {[%clk 0:00:41]} 34. a4 {[%clk 0:01:32]}  Ba6 {[%clk 0:00:16]} 35. Rd7 {[%clk 0:01:26]}  Kf8 {[%clk 0:00:15]} 36. Qc3 {[%clk 0:01:15]}  Ke8 {[%clk 0:00:11]} 37. Rd4 {[%clk 0:01:09]}  Qe6 {[%clk 0:00:02]} 38. Qc7 {[%clk 0:01:05]} 1-0


[Site "https://www.chess.com"]

[Event "Titled Tuesday Blitz May 24 Early 2022"]
[White "Nugumanov, Bakhtiyar"]
[Black "Mikhalsky, Vladimir"]
[WhiteFideId "13701797"]
[BlackFideId "14144352"]
[WhiteElo "2262"]
[BlackElo "2301"]
[Result "0-1"]
[Round "07"]
[TimeControl "180+1"]
[Date "2022.05.25"]
[WhiteClock "0:00:03"]
[BlackClock "0:00:10"]

1. Nf3 {[%clk 0:02:59]}  c5 {[%clk 0:02:57]} 2. c4 {[%clk 0:02:59]}  Nf6 {[%clk 0:02:56]} 3. Nc3 {[%clk 0:02:59]}  d5 {[%clk 0:02:56]} 4. cxd5 {[%clk 0:02:58]}  Nxd5 {[%clk 0:02:57]} 5. e3 {[%clk 0:02:48]}  Nc6 {[%clk 0:02:55]} 6. Bc4 {[%clk 0:02:01]}  Nxc3 {[%clk 0:02:52]} 7. bxc3 {[%clk 0:02:02]}  e5 {[%clk 0:02:48]} 8. O-O {[%clk 0:01:59]}  Be7 {[%clk 0:02:40]} 9. d4 {[%clk 0:01:57]}  exd4 {[%clk 0:02:29]} 10. cxd4 {[%clk 0:01:55]}  cxd4 {[%clk 0:02:30]} 11. exd4 {[%clk 0:01:52]}  O-O {[%clk 0:02:29]} 12. Bb2 {[%clk 0:01:47]}  Bf6 {[%clk 0:02:28]} 13. Qd2 {[%clk 0:01:41]}  Bg4 {[%clk 0:02:25]} 14. d5 {[%clk 0:01:32]}  Bxf3 {[%clk 0:02:22]} 15. gxf3 {[%clk 0:01:27]}  Ne5 {[%clk 0:02:18]} 16. Be2 {[%clk 0:01:21]}  Qd6 {[%clk 0:01:57]} 17. Rfd1 {[%clk 0:01:00]}  Rfd8 {[%clk 0:01:42]} 18. Rab1 {[%clk 0:00:55]}  Rac8 {[%clk 0:01:36]} 19. Qe3 {[%clk 0:00:49]}  b6 {[%clk 0:01:32]} 20. Ba3 {[%clk 0:00:47]}  Qd7 {[%clk 0:01:29]} 21. Bb5 {[%clk 0:00:47]}  Qh3 {[%clk 0:01:23]} 22. Be2 {[%clk 0:00:44]}  Ng6 {[%clk 0:01:10]} 23. f4 {[%clk 0:00:35]}  Nxf4 {[%clk 0:00:48]} 24. Qxh3 {[%clk 0:00:27]}  Nxh3+ {[%clk 0:00:48]} 25. Kf1 {[%clk 0:00:25]}  Nf4 {[%clk 0:00:47]} 26. Bg4 {[%clk 0:00:24]}  Rc3 {[%clk 0:00:41]} 27. Bb4 {[%clk 0:00:19]}  Rd3 {[%clk 0:00:38]} 28. d6 {[%clk 0:00:11]}  a5 {[%clk 0:00:30]} 29. Rxd3 {[%clk 0:00:08]}  Nxd3 {[%clk 0:00:29]} 30. Ba3 {[%clk 0:00:08]}  Bd4 {[%clk 0:00:23]} 31. Rd1 {[%clk 0:00:07]}  Bc5 {[%clk 0:00:22]} 32. Rxd3 {[%clk 0:00:04]}  Bxa3 {[%clk 0:00:22]} 33. d7 {[%clk 0:00:05]}  Be7 {[%clk 0:00:20]} 34. Rc3 {[%clk 0:00:04]}  Bc5 {[%clk 0:00:20]} 35. Rd3 {[%clk 0:00:02]}  g6 {[%clk 0:00:19]} 36. h3 {[%clk 0:00:01]}  f5 {[%clk 0:00:19]} 37. Bf3 {[%clk 0:00:02]}  Kf7 {[%clk 0:00:19]} 38. Bc6 {[%clk 0:00:02]}  Ke7 {[%clk 0:00:17]} 39. a4 {[%clk 0:00:03]}  Bd6 {[%clk 0:00:14]} 40. Ke2 {[%clk 0:00:03]}  Be5 {[%clk 0:00:13]} 41. Kf3 {[%clk 0:00:03]}  Ke6 {[%clk 0:00:13]} 42. Rb3 {[%clk 0:00:03]}  Kd6 {[%clk 0:00:12]} 43. Rxb6 {[%clk 0:00:03]}  Kc7 {[%clk 0:00:12]} 44. Ra6 {[%clk 0:00:02]}  Bd4 {[%clk 0:00:11]} 45. Bb5 {[%clk 0:00:03]}  Bb6 {[%clk 0:00:10]} 0-1


[Site "https://www.chess.com"]

[Event "Titled Tuesday Blitz May 24 Early 2022"]
[White "Odegov, Artem"]
[Black "Samaganova, Aleksandra"]
[WhiteFideId "34183644"]
[BlackFideId "13800221"]
[WhiteElo "2286"]
[BlackElo "1889"]
[Result "0-1"]
[Round "07"]
[TimeControl "180+1"]
[Date "2022.05.25"]
[WhiteClock "0:00:02"]
[BlackClock "0:00:54"]

1. d4 {[%clk 0:03:00]}  Nf6 {[%clk 0:02:58]} 2. c4 {[%clk 0:02:59]}  e6 {[%clk 0:02:56]} 3. Nf3 {[%clk 0:02:59]}  b6 {[%clk 0:02:55]} 4. g3 {[%clk 0:02:58]}  Bb7 {[%clk 0:02:55]} 5. Bg2 {[%clk 0:02:57]}  d5 {[%clk 0:02:54]} 6. O-O {[%clk 0:02:53]}  Be7 {[%clk 0:02:54]} 7. cxd5 {[%clk 0:02:50]}  Nxd5 {[%clk 0:02:50]} 8. Nc3 {[%clk 0:02:49]}  Nxc3 {[%clk 0:02:48]} 9. bxc3 {[%clk 0:02:50]}  O-O {[%clk 0:02:48]} 10. Qc2 {[%clk 0:02:50]}  Qc8 {[%clk 0:02:40]} 11. Bf4 {[%clk 0:02:18]}  c5 {[%clk 0:02:39]} 12. Rac1 {[%clk 0:02:15]}  Nd7 {[%clk 0:02:38]} 13. Qd3 {[%clk 0:01:52]}  Nf6 {[%clk 0:02:33]} 14. Rfd1 {[%clk 0:01:46]}  Be4 {[%clk 0:02:29]} 15. Qd2 {[%clk 0:01:42]}  Rd8 {[%clk 0:02:25]} 16. Be5 {[%clk 0:01:24]}  Qb7 {[%clk 0:02:20]} 17. Qf4 {[%clk 0:01:21]}  Rac8 {[%clk 0:02:02]} 18. h4 {[%clk 0:01:04]}  cxd4 {[%clk 0:01:51]} 19. cxd4 {[%clk 0:01:02]}  Bd5 {[%clk 0:01:51]} 20. Ne1 {[%clk 0:00:21]}  Qa6 {[%clk 0:01:32]} 21. e4 {[%clk 0:00:19]}  Bxa2 {[%clk 0:01:12]} 22. Ra1 {[%clk 0:00:17]}  Qc4 {[%clk 0:01:03]} 23. Bf1 {[%clk 0:00:15]}  Qb3 {[%clk 0:01:02]} 24. Rdc1 {[%clk 0:00:03]}  Qb2 {[%clk 0:00:53]} 25. Rxc8 {[%clk 0:00:02]}  Rxc8 {[%clk 0:00:54]} 26. Rc1 {[%clk 0:00:03]}  Qxc1 {[%clk 0:00:54]} 27. Qf3 {[%clk 0:00:02]} 0-1


[Site "https://www.chess.com"]

[Event "Titled Tuesday Blitz May 24 Early 2022"]
[White "Osiecki, Stanislaw"]
[Black "Legenia, Artem"]
[WhiteFideId "1102990"]
[BlackFideId "14136945"]
[WhiteElo "2127"]
[BlackElo "1936"]
[Result "0-1"]
[Round "07"]
[TimeControl "180+1"]
[Date "2022.05.25"]
[WhiteClock "0:00:04"]
[BlackClock "0:00:10"]

1. e4 {[%clk 0:02:51]}  d6 {[%clk 0:02:57]} 2. d4 {[%clk 0:02:51]}  g6 {[%clk 0:02:56]} 3. Nc3 {[%clk 0:02:51]}  Bg7 {[%clk 0:02:57]} 4. f4 {[%clk 0:02:52]}  a6 {[%clk 0:02:57]} 5. a4 {[%clk 0:02:46]}  b6 {[%clk 0:02:56]} 6. Bc4 {[%clk 0:02:45]}  Bb7 {[%clk 0:02:55]} 7. Nf3 {[%clk 0:02:45]}  e6 {[%clk 0:02:55]} 8. O-O {[%clk 0:02:45]}  Ne7 {[%clk 0:02:55]} 9. e5 {[%clk 0:02:45]}  O-O {[%clk 0:02:53]} 10. Qe1 {[%clk 0:02:44]}  dxe5 {[%clk 0:02:47]} 11. dxe5 {[%clk 0:02:44]}  Bxf3 {[%clk 0:02:45]} 12. Rxf3 {[%clk 0:02:34]}  Qd4+ {[%clk 0:02:44]} 13. Be3 {[%clk 0:02:34]}  Qxc4 {[%clk 0:02:44]} 14. Kh1 {[%clk 0:02:33]}  Qc6 {[%clk 0:02:42]} 15. Qh4 {[%clk 0:02:29]}  Nf5 {[%clk 0:02:41]} 16. Qh3 {[%clk 0:02:29]}  Nd7 {[%clk 0:02:37]} 17. Re1 {[%clk 0:02:27]}  b5 {[%clk 0:02:33]} 18. Bf2 {[%clk 0:02:23]}  b4 {[%clk 0:02:32]} 19. Ne4 {[%clk 0:02:23]}  h5 {[%clk 0:02:29]} 20. Ng5 {[%clk 0:02:14]}  Nh6 {[%clk 0:02:23]} 21. c3 {[%clk 0:02:10]}  a5 {[%clk 0:02:21]} 22. Bd4 {[%clk 0:02:00]}  Nb6 {[%clk 0:02:16]} 23. Ne4 {[%clk 0:01:58]}  Nd5 {[%clk 0:02:08]} 24. Nf6+ {[%clk 0:01:36]}  Bxf6 {[%clk 0:02:07]} 25. exf6 {[%clk 0:01:36]}  bxc3 {[%clk 0:01:58]} 26. bxc3 {[%clk 0:01:36]}  Rab8 {[%clk 0:01:51]} 27. Qh4 {[%clk 0:01:34]}  Kh7 {[%clk 0:01:41]} 28. Qg5 {[%clk 0:01:24]}  Rg8 {[%clk 0:01:12]} 29. Rh3 {[%clk 0:01:24]}  Rb3 {[%clk 0:00:57]} 30. Kg1 {[%clk 0:01:13]}  Nb6 {[%clk 0:00:57]} 31. g4 {[%clk 0:01:04]}  Rb2 {[%clk 0:00:54]} 32. Rg3 {[%clk 0:00:49]}  Qd5 {[%clk 0:00:34]} 33. f5 {[%clk 0:00:46]}  exf5 {[%clk 0:00:26]} 34. Be3 {[%clk 0:00:45]}  f4 {[%clk 0:00:14]} 35. Qxf4 {[%clk 0:00:38]}  g5 {[%clk 0:00:14]} 36. Qxc7 {[%clk 0:00:28]}  h4 {[%clk 0:00:14]} 37. Bc1 {[%clk 0:00:19]}  Rc2 {[%clk 0:00:13]} 38. c4 {[%clk 0:00:16]}  Nxc4 {[%clk 0:00:11]} 39. Rf1 {[%clk 0:00:09]}  hxg3 {[%clk 0:00:10]} 40. Qxf7+ {[%clk 0:00:04]}  Qxf7 {[%clk 0:00:10]} 0-1


[Site "https://www.chess.com"]

[Event "Titled Tuesday Blitz May 24 Early 2022"]
[White "Ovezdurdyyeva, Jemal"]
[Black "Ljukin, Sergei"]
[WhiteFideId "14001888"]
[BlackFideId "14102200"]
[WhiteElo "1946"]
[BlackElo "2312"]
[Result "1-0"]
[Round "07"]
[TimeControl "180+1"]
[Date "2022.05.25"]
[WhiteClock "0:00:39"]
[BlackClock "0:00:01"]

1. e4 {[%clk 0:03:00]}  e6 {[%clk 0:02:56]} 2. d4 {[%clk 0:02:58]}  d5 {[%clk 0:02:55]} 3. Nd2 {[%clk 0:02:58]}  Nf6 {[%clk 0:02:55]} 4. e5 {[%clk 0:02:52]}  Nfd7 {[%clk 0:02:54]} 5. Ngf3 {[%clk 0:02:51]}  c5 {[%clk 0:02:54]} 6. c3 {[%clk 0:02:50]}  Nc6 {[%clk 0:02:54]} 7. Nb3 {[%clk 0:02:48]}  a5 {[%clk 0:02:46]} 8. Be2 {[%clk 0:02:40]}  a4 {[%clk 0:02:46]} 9. Nxc5 {[%clk 0:02:37]}  Nxc5 {[%clk 0:02:46]} 10. dxc5 {[%clk 0:02:37]}  Bxc5 {[%clk 0:02:46]} 11. O-O {[%clk 0:02:36]}  O-O {[%clk 0:02:46]} 12. Bd3 {[%clk 0:02:32]}  f6 {[%clk 0:02:45]} 13. exf6 {[%clk 0:02:20]}  Qxf6 {[%clk 0:02:45]} 14. Bg5 {[%clk 0:02:10]}  Qf7 {[%clk 0:02:45]} 15. Bh4 {[%clk 0:02:11]}  h6 {[%clk 0:02:44]} 16. Bc2 {[%clk 0:02:09]}  e5 {[%clk 0:02:42]} 17. Bxa4 {[%clk 0:02:05]}  e4 {[%clk 0:01:55]} 18. Nd4 {[%clk 0:02:03]}  Ne5 {[%clk 0:01:50]} 19. Bb3 {[%clk 0:01:53]}  Bg4 {[%clk 0:01:40]} 20. Qd2 {[%clk 0:01:37]}  Kh8 {[%clk 0:00:18]} 21. Bg3 {[%clk 0:01:32]}  Nd3 {[%clk 0:00:18]} 22. Bc2 {[%clk 0:01:27]}  Bxd4 {[%clk 0:00:12]} 23. Bxd3 {[%clk 0:01:26]}  Bb6 {[%clk 0:00:11]} 24. Bc2 {[%clk 0:01:21]}  Rad8 {[%clk 0:00:11]} 25. Kh1 {[%clk 0:01:18]}  Qe7 {[%clk 0:00:09]} 26. Rae1 {[%clk 0:01:14]}  Qf6 {[%clk 0:00:07]} 27. a4 {[%clk 0:01:05]}  h5 {[%clk 0:00:07]} 28. h3 {[%clk 0:01:04]}  h4 {[%clk 0:00:05]} 29. Bh2 {[%clk 0:00:59]}  Bh5 {[%clk 0:00:05]} 30. b4 {[%clk 0:00:53]}  Bxf2 {[%clk 0:00:05]} 31. Bg1 {[%clk 0:00:48]}  Bxe1 {[%clk 0:00:05]} 32. Qxe1 {[%clk 0:00:48]}  Qxf1 {[%clk 0:00:03]} 33. Qxh4 {[%clk 0:00:47]}  g6 {[%clk 0:00:02]} 34. Qg5 {[%clk 0:00:42]}  Qf6 {[%clk 0:00:01]} 35. Qh6+ {[%clk 0:00:41]}  Kg8 {[%clk 0:00:01]} 36. c4 {[%clk 0:00:39]} 1-0


[Site "https://www.chess.com"]

[Event "Titled Tuesday Blitz May 24 Early 2022"]
[White "Pacheco Lugo, Alejandro Jose"]
[Black "Lauridsen, Jesper Morch"]
[WhiteFideId "3903745"]
[BlackFideId "1401890"]
[WhiteElo "2146"]
[BlackElo "2241"]
[Result "1-0"]
[Round "07"]
[TimeControl "180+1"]
[Date "2022.05.25"]
[WhiteClock "0:01:13"]
[BlackClock "0:00:07"]

1. e4 {[%clk 0:03:00]}  c5 {[%clk 0:02:59]} 2. Nf3 {[%clk 0:03:00]}  d6 {[%clk 0:02:58]} 3. d4 {[%clk 0:03:01]}  cxd4 {[%clk 0:02:58]} 4. Nxd4 {[%clk 0:03:02]}  Nf6 {[%clk 0:02:58]} 5. Nc3 {[%clk 0:03:02]}  a6 {[%clk 0:02:58]} 6. Be3 {[%clk 0:03:02]}  e6 {[%clk 0:02:57]} 7. Nb3 {[%clk 0:03:03]}  b6 {[%clk 0:02:55]} 8. g4 {[%clk 0:03:03]}  Bb7 {[%clk 0:02:55]} 9. f3 {[%clk 0:03:03]}  h6 {[%clk 0:02:44]} 10. h4 {[%clk 0:03:02]}  d5 {[%clk 0:02:41]} 11. e5 {[%clk 0:03:00]}  Nfd7 {[%clk 0:02:40]} 12. f4 {[%clk 0:03:01]}  Be7 {[%clk 0:02:35]} 13. Bg2 {[%clk 0:02:49]}  Bxh4+ {[%clk 0:02:31]} 14. Kf1 {[%clk 0:02:49]}  g5 {[%clk 0:02:20]} 15. Qd2 {[%clk 0:02:46]}  Nc6 {[%clk 0:02:10]} 16. Nd4 {[%clk 0:02:39]}  gxf4 {[%clk 0:01:57]} 17. Nxc6 {[%clk 0:02:39]}  Bxc6 {[%clk 0:01:29]} 18. Bxf4 {[%clk 0:02:26]}  Qe7 {[%clk 0:01:23]} 19. Ne2 {[%clk 0:02:16]}  O-O-O {[%clk 0:01:08]} 20. Nd4 {[%clk 0:02:16]}  Bb5+ {[%clk 0:01:02]} 21. Kg1 {[%clk 0:02:16]}  Bg5 {[%clk 0:00:53]} 22. a4 {[%clk 0:02:15]}  Bc4 {[%clk 0:00:46]} 23. b3 {[%clk 0:02:14]}  Nxe5 {[%clk 0:00:42]} 24. bxc4 {[%clk 0:02:10]}  Nxc4 {[%clk 0:00:42]} 25. Qf2 {[%clk 0:02:07]}  Bf6 {[%clk 0:00:29]} 26. Rb1 {[%clk 0:01:52]}  Bxd4 {[%clk 0:00:19]} 27. Qxd4 {[%clk 0:01:51]}  Qc5 {[%clk 0:00:20]} 28. Qxc5+ {[%clk 0:01:47]}  bxc5 {[%clk 0:00:20]} 29. Rb8+ {[%clk 0:01:41]}  Kd7 {[%clk 0:00:20]} 30. Rb7+ {[%clk 0:01:40]}  Kc6 {[%clk 0:00:17]} 31. Rxf7 {[%clk 0:01:38]}  Rhf8 {[%clk 0:00:15]} 32. Rxf8 {[%clk 0:01:35]}  Rxf8 {[%clk 0:00:15]} 33. Bxh6 {[%clk 0:01:36]}  Rg8 {[%clk 0:00:15]} 34. g5 {[%clk 0:01:36]}  Ne3 {[%clk 0:00:14]} 35. Bh3 {[%clk 0:01:35]}  e5 {[%clk 0:00:14]} 36. Kf2 {[%clk 0:01:34]}  Nxc2 {[%clk 0:00:13]} 37. Be6 {[%clk 0:01:33]}  Re8 {[%clk 0:00:12]} 38. Bf7 {[%clk 0:01:33]}  Re7 {[%clk 0:00:12]} 39. g6 {[%clk 0:01:33]}  e4 {[%clk 0:00:12]} 40. Bg5 {[%clk 0:01:24]}  Rb7 {[%clk 0:00:11]} 41. Kg3 {[%clk 0:01:16]}  d4 {[%clk 0:00:11]} 42. g7 {[%clk 0:01:16]}  Rb8 {[%clk 0:00:09]} 43. Rh8 {[%clk 0:01:15]}  Rb3+ {[%clk 0:00:07]} 44. Kg4 {[%clk 0:01:13]} 1-0


[Site "https://www.chess.com"]

[Event "Titled Tuesday Blitz May 24 Early 2022"]
[White "Papasimakopoulos, Alexandros"]
[Black "Martinez Alcantara, Jose Eduardo"]
[WhiteFideId "4244125"]
[BlackFideId "3805662"]
[WhiteElo "2340"]
[BlackElo "2690"]
[Result "0-1"]
[Round "07"]
[TimeControl "180+1"]
[Date "2022.05.24"]
[WhiteClock "0:00:18"]
[BlackClock "0:00:18"]

1. d4 {[%clk 0:03:00]}  Nf6 {[%clk 0:02:59]} 2. c4 {[%clk 0:03:01]}  e6 {[%clk 0:02:59]} 3. Nc3 {[%clk 0:03:01]}  Bb4 {[%clk 0:02:59]} 4. Qc2 {[%clk 0:03:02]}  d6 {[%clk 0:02:57]} 5. a3 {[%clk 0:03:02]}  Bxc3+ {[%clk 0:02:57]} 6. Qxc3 {[%clk 0:03:03]}  Nbd7 {[%clk 0:02:56]} 7. f3 {[%clk 0:03:03]}  d5 {[%clk 0:02:37]} 8. Bf4 {[%clk 0:03:02]}  O-O {[%clk 0:02:37]} 9. e3 {[%clk 0:03:02]}  b6 {[%clk 0:02:36]} 10. Bd3 {[%clk 0:02:58]}  Bb7 {[%clk 0:02:36]} 11. Ne2 {[%clk 0:02:58]}  c5 {[%clk 0:02:37]} 12. b4 {[%clk 0:02:45]}  cxd4 {[%clk 0:02:35]} 13. Qxd4 {[%clk 0:02:37]}  Re8 {[%clk 0:02:30]} 14. Bg5 {[%clk 0:02:26]}  h6 {[%clk 0:02:30]} 15. Bxf6 {[%clk 0:02:22]}  Nxf6 {[%clk 0:02:31]} 16. cxd5 {[%clk 0:02:14]}  e5 {[%clk 0:02:32]} 17. Qb2 {[%clk 0:02:11]}  Bxd5 {[%clk 0:02:18]} 18. Rd1 {[%clk 0:02:09]}  e4 {[%clk 0:01:52]} 19. fxe4 {[%clk 0:02:06]}  Nxe4 {[%clk 0:01:49]} 20. O-O {[%clk 0:02:05]}  Qg5 {[%clk 0:01:44]} 21. Nf4 {[%clk 0:02:02]}  Rad8 {[%clk 0:01:44]} 22. Bxe4 {[%clk 0:01:49]}  Bxe4 {[%clk 0:01:42]} 23. Qb3 {[%clk 0:01:39]}  Qe7 {[%clk 0:01:29]} 24. Rxd8 {[%clk 0:01:29]}  Rxd8 {[%clk 0:01:30]} 25. Rd1 {[%clk 0:01:30]}  Re8 {[%clk 0:01:28]} 26. Qc3 {[%clk 0:01:21]}  Bb7 {[%clk 0:01:21]} 27. Re1 {[%clk 0:01:19]}  Rc8 {[%clk 0:01:18]} 28. Qd3 {[%clk 0:01:17]}  Be4 {[%clk 0:01:15]} 29. Qd4 {[%clk 0:01:11]}  Rc2 {[%clk 0:01:01]} 30. Qd1 {[%clk 0:00:32]}  Qc7 {[%clk 0:00:51]} 31. Qd4 {[%clk 0:00:29]}  f5 {[%clk 0:00:46]} 32. h3 {[%clk 0:00:23]}  Kh7 {[%clk 0:00:44]} 33. b5 {[%clk 0:00:21]}  Qe7 {[%clk 0:00:28]} 34. a4 {[%clk 0:00:20]}  Qg5 {[%clk 0:00:26]} 35. g4 {[%clk 0:00:18]}  Qh4 {[%clk 0:00:23]} 36. Re2 {[%clk 0:00:18]}  Qg3+ {[%clk 0:00:22]} 37. Kf1 {[%clk 0:00:18]}  Rc1+ {[%clk 0:00:22]} 38. Re1 {[%clk 0:00:18]}  Rxe1# {[%clk 0:00:18]} 0-1


[Site "https://www.chess.com"]